Cogmind - Beta 9.4 *** ADVENTURER MODE // 2020.07.29 @ 18:35:06 Player: Scyralis Result: Self-destructed Performance ------------- Evolutions (2) 1000 Regions Visited (5) 1000 Robots Destroyed (30) 150 Value Destroyed (320) 320 Prototype IDs (3) 60 Alien Tech Used (0) 0 Bonus (0) 0 TOTAL SCORE: 2530 Bonus ------- None Cogmind --------- Core Integrity 538/550 Matter 300/300 Energy 125/125 System Corruption 0% Temperature Cool (0) Movement Flying (37) Location -8/Materials Parts ------- > --- POWER (2) -------- Light Ion Engine > --- PROPULSION (3) --- Flight Unit Flight Unit > --- UTILITY (4) ------ Experimental Sensor Array Advanced Signal Interpreter Transport Network Coupler Propulsion Shielding > --- WEAPON (2) ------- Mace > --- INVENTORY (4) ---- Hacking Suite Heavy EM Pulse Gun Peak State ------------ > --- POWER ------------ Light Ion Engine > --- PROPULSION ------- Flight Unit Flight Unit > --- UTILITY ---------- Experimental Sensor Array Advanced Signal Interpreter Transport Network Coupler Propulsion Shielding > --- WEAPON ----------- Datajack Mace > --- INVENTORY -------- Hacking Suite Heavy EM Pulse Gun [Rating: 17] Favorites ----------- Power Light Ion Engine Engine Light Ion Engine Propulsion Flight Unit Wheel Wheel Flight Unit Flight Unit Utility Propulsion Shielding Device Experimental Sensor Array Processor Transport Network Coupler Protection Propulsion Shielding Weapon EM Pulse Gun Energy Gun EM Pulse Gun Ballistic Gun Light Assault Rifle Impact Weapon Mace Special Melee Weapon Datajack Build | -11 -10 -10 -9 -9 -8 ------- Run | Scr Mat Min Mat Min Mat Slots Evolved 4 | . . . 2 . 2 Power 1 | . . . . . 1 Propulsion 1 | . . . . . 1 Utility 2 | . . . 2 . . Weapon . | . . . . . . Parts Attached 32 | 6 7 4 14 . 1 Power 5 | . 1 1 3 . . Engine 5 | . 1 1 3 . . Core . | . . . . . . Reactor . | . . . . . . Propulsion 8 | 2 3 1 2 . . Treads . | . . . . . . Leg . | . . . . . . Wheel 2 | 2 . . . . . Hover . | . . . . . . Flight 6 | . 3 1 2 . . Utility 8 | 2 1 2 3 . . Device 3 | 1 . 2 . . . Storage . | . . . . . . Processor 4 | 1 . . 3 . . Hackware . | . . . . . . Protection 1 | . 1 . . . . Artifact . | . . . . . . Weapon 11 | 2 2 . 6 . 1 Energy Gun 6 | 2 . . 4 . . Energy Cannon . | . . . . . . Ballistic Gun 2 | . 1 . 1 . . Ballistic Cannon . | . . . . . . Launcher . | . . . . . . Special Weapon . | . . . . . . Impact Weapon 1 | . . . 1 . . Slashing Weapon . | . . . . . . Piercing Weapon . | . . . . . . Special Melee Weapon 2 | . 1 . . . 1 Unidentified Prototypes 3 | . . 1 2 . . Parts Lost 6 | . 2 . 3 . 1 Power 2 | . 1 . 1 . . Propulsion 1 | . . . 1 . . Utility . | . . . . . . Weapon 3 | . 1 . 1 . 1 Highest Loss Streak 1 | . 1 . 1 . 1 Average Slot Usage (%) 80 | . 78 95 78 88 80 Engine 9 | . 9 11 10 11 9 Wheel 1 | . 5 . . . . Flight 20 | . 21 28 20 22 18 Device 10 | . 11 11 11 11 9 Processor 14 | . 11 . 14 22 18 Protection 8 | . 2 14 11 11 9 Energy Gun 3 | . 3 . 6 . . Ballistic Gun 3 | . 9 14 1 . . Impact Weapon 3 | . . . 1 11 9 Special Melee Weapon 4 | . 2 14 1 . 8 Naked Turns . | . . . . . . Heaviest Build 8 | 4 6 7 8 7 8 Greatest Support 26 | 26 26 8 8 8 8 Greatest Overweight (x) 1 | . . . 1 . . Average Overweight (x) . | . . . . . . Largest Inventory Capacity 4 | 4 4 4 4 4 4 Average Capacity 4 | 4 4 4 4 4 4 Most Carried 4 | 2 3 2 4 3 3 Average Carried . | . . . 1 3 2 Final Capacity 4 | 4 4 4 4 4 4 Final Carried 3 | . . . 3 3 2 Class Distribution -------------------- 43% | Mutant 29% | Scavenger-Scout 26% | Scavenger-Mutant Dominant Class ---------------- Scavenger-Mutant | -10/Materials Scavenger-Mutant | -10/Mines Scavenger-Mutant | -9/Materials Scavenger-Scout | -9/Mines Scavenger-Scout | -8/Materials Resources | -11 -10 -10 -9 -9 -8 ----------- Run | Scr Mat Min Mat Min Mat Matter Collected 557 | 260 68 74 100 45 10 Remotely . | . . . . . . Salvage Created 868 | 174 425 50 203 . 16 Parts 56 | 11 23 9 11 . 2 Haulers Intercepted 2 | . 1 . 1 . . Recyclers Shooed 2 | . 2 . . . . Parts Field Recycled . | . . . . . . Retrieved Matter . | . . . . . . Parts Self-Destructed . | . . . . . . Prevented . | . . . . . . Kills | -11 -10 -10 -9 -9 -8 ------- Run | Scr Mat Min Mat Min Mat Combat Hostiles Destroyed 15 | . 7 2 6 . . Guns 13 | . 6 2 5 . . AOE 2 | . 1 . 1 . . Classes Destroyed 7 | 3 3 . 1 . . Worker 2 | 1 . . . . 1 Tunneler 6 | 5 . 1 . . . Hauler 2 | . 1 . 1 . . Recycler 4 | 1 3 . . . . Watcher 1 | . . . 1 . . Swarmer 12 | . 6 2 4 . . Grunt 3 | . 1 . 2 . . Best Kill Streak 6 | 3 4 2 6 . 1 Combat Bots Only 5 | . 3 2 5 . . Max Kills in Single Turn 2 | 1 1 1 2 . 1 Gunslinging . | . . . . . . Exploded 1 | . 1 . 1 . . Melee . | . . . . . . Uniques/NPCs Destroyed . | . . . . . . Combat | -11 -10 -10 -9 -9 -8 -------- Run | Scr Mat Min Mat Min Mat Damage Taken 667 | 24 202 4 298 55 84 Core 275 | 12 87 4 129 31 12 Absorbed by Shields . | . . . . . . Core Remaining (%) 71 | 95 . 58 . 60 . Volleys Fired 112 | 21 56 4 31 . . Largest 2 | 2 1 1 1 . . Hottest 80 | 80 40 20 45 . . Shots Fired 119 | 28 56 4 31 . . Gun 119 | 28 56 4 31 . . Cannon . | . . . . . . Launcher . | . . . . . . Special . | . . . . . . Kinetic 56 | . 41 4 11 . . Thermal . | . . . . . . Explosive . | . . . . . . Electromagnetic 63 | 28 15 . 20 . . Robot Hit Streak 18 | 8 13 2 18 . . Robot Miss Streak 2 | 1 1 2 2 . . Penetration Max . | . . . . . . Secondary Targets . | . . . . . . Shots Hit Robots 109 | 21 52 2 30 . 4 Core Hits 45 | 7 19 3 15 . 1 Critical Hits . | . . . . . . Critical Kills . | . . . . . . Critical Parts Destroyed . | . . . . . . Melee Attacks 15 | . 3 . 6 . 6 Impact 8 | . . . 4 . 4 Slashing . | . . . . . . Piercing . | . . . . . . Sneak Attacks 7 | . 3 . 1 . 3 Combat Hostiles . | . . . . . . Follow-up Attacks . | . . . . . . Damage Inflicted 1584 | 363 554 28 560 . 79 Guns 1211 | 288 456 28 439 . . Cannons . | . . . . . . Explosions 292 | 75 96 . 121 . . Melee 79 | . . . . . 79 Ramming 2 | . 2 . . . . Kinetic 404 | . 295 28 81 . . Thermal 292 | 75 96 . 121 . . Explosive . | . . . . . . Electromagnetic 807 | 288 161 . 358 . . Impact 79 | . . . . . 79 Slashing . | . . . . . . Piercing . | . . . . . . Highest Corruption . | . . . . . . Average Corruption . | . . . . . . Corruption Purged . | . . . . . . Overload Shots . | . . . . . . Overflow Damage 53 | 24 14 . . . 15 Projectiles . | . . . . . . Explosions 38 | 24 14 . . . . Melee 15 | . . . . . 15 Knockbacks 1 | . . . . . 1 Impact 1 | . . . . . 1 Kinetic . | . . . . . . Secondary . | . . . . . . Self-Inflicted Damage 71 | 24 27 . 20 . . Shots 4 | 2 1 . 1 . . Rammed 1 | . 1 . . . . Targets Rammed 1 | . 1 . . . . Kicked . | . . . . . . Crushed . | . . . . . . Highest Temperature 43 | 24 16 4 43 . . Average Temperature 7 | 11 3 2 12 . . Received Heat Transfer 294 | . 63 . 186 . 45 Siege Activations . | . . . . . . Robots Corrupted . | . . . . . . Combat Hostiles . | . . . . . . Parts Fried 1 | . . . 1 . . Impact Corruptions 1 | . . . . . 1 Robots Melted . | . . . . . . Combat Hostiles . | . . . . . . Parts Melted . | . . . . . . Heat Transferred 400 | 50 150 . 200 . . Parts Sabotaged . | . . . . . . Parts Stolen . | . . . . . . Parts Stripped . | . . . . . . Power Chain Reactions 5 | 2 2 . 1 . . Missiles Intercepted . | . . . . . . Alert | -11 -10 -10 -9 -9 -8 ------- Run | Scr Mat Min Mat Min Mat Peak Influence 315 | 20 237 75 315 9 30 Average Influence 48 | 11 132 47 88 9 9 Maximum Alert Level 1 | . 1 . 1 . . Low Security (%) 92 | 100 87 100 77 100 100 Level 1 7 | . 12 . 22 . . Level 2 . | . . . . . . Level 3 . | . . . . . . Level 4 . | . . . . . . Level 5 . | . . . . . . High Security . | . . . . . . Max Security . | . . . . . . Squads Dispatched 11 | . 3 . 7 . 1 Investigation 8 | . 3 . 4 . 1 Extermination . | . . . . . . Reinforcement 3 | . . . 3 . . Assault . | . . . . . . Garrison . | . . . . . . Intercept . | . . . . . . Construction Impeded 1 | . . . 1 . . Haulers Reinforced . | . . . . . . Stealth | -11 -10 -10 -9 -9 -8 --------- Run | Scr Mat Min Mat Min Mat Distress Signals 3 | . 1 . 1 . 1 Communications Jammed . | . . . . . . Distress Signals . | . . . . . . Times Spotted 70 | . 18 4 42 2 4 Peak Tracking Total 13 | . 6 3 13 2 4 Tactical Retreats 14 | . 1 1 12 . . Traps | -11 -10 -10 -9 -9 -8 ------- Run | Scr Mat Min Mat Min Mat Traps Triggered 1 | . 1 . . . . Indirectly . | . . . . . . Trap Hack Attempts . | . . . . . . Triggered . | . . . . . . Disarmed . | . . . . . . Reprogrammed . | . . . . . . Reused . | . . . . . . Traps Extracted . | . . . . . . Installed . | . . . . . . Triggered . | . . . . . . Machines | -11 -10 -10 -9 -9 -8 ---------- Run | Scr Mat Min Mat Min Mat Machines Disabled 1 | . . . 1 . . Max in Single Turn 1 | . . . 1 . . Machines Sabotaged . | . . . . . . Garrisons Compromised . | . . . . . . Overloaded Fab Kills . | . . . . . . Fab Network Shutdowns . | . . . . . . Hacking | -11 -10 -10 -9 -9 -8 --------- Run | Scr Mat Min Mat Min Mat Machines Accessed 16 | . 6 . 9 . 1 Terminals 13 | . 6 . 6 . 1 Fabricators . | . . . . . . Repair Stations 2 | . . . 2 . . Recycling Units . | . . . . . . Scanalyzers 1 | . . . 1 . . Garrison Access . | . . . . . . Total Hacks 70 | . 25 . 37 . 8 Successful 45 | . 14 . 28 . 3 Failed 25 | . 11 . 9 . 5 Catastrophic 2 | . . . 2 . . Database Lockouts . | . . . . . . Manual 29 | . 11 . 15 . 3 Terminals 63 | . 25 . 30 . 8 Fabricators . | . . . . . . Repair Stations 5 | . . . 5 . . Recycling Units . | . . . . . . Scanalyzers 2 | . . . 2 . . Garrison Access . | . . . . . . Terminal Hacks 32 | . 12 . 18 . 2 Record 5 | . 3 . 2 . . Emergency Access Points 3 | . 1 . 2 . . Terminal Index 1 | . 1 . . . . Alert Level 2 | . . . 2 . . Unreport Threat 5 | . 1 . 3 . 1 Locate Traps 3 | . 1 . 2 . . Patrol Status 1 | . . . 1 . . Recall Investigation 3 | . 2 . 1 . . Recall Reinforcements 1 | . . . 1 . . Recall Assault 2 | . 1 . 1 . . Registered Prototypes 1 | . . . 1 . . Zone Layout 5 | . 2 . 2 . 1 Fabricator Hacks . | . . . . . . Repair Station Hacks 2 | . . . 2 . . Scan Component 1 | . . . 1 . . Repair 1 | . . . 1 . . Recycling Unit Hacks . | . . . . . . Scanalyzer 2 | . . . 2 . . Insert Component 1 | . . . 1 . . Analyze 1 | . . . 1 . . Garrison Access Hacks . | . . . . . . Unauthorized Hacks 19 | . 6 . 11 . 2 Terminals 8 | . 2 . 5 . 1 Assimilate 8 | . 2 . 5 . 1 Fabricators . | . . . . . . Repair Stations . | . . . . . . Recycling Units . | . . . . . . Scanalyzers . | . . . . . . Garrison Access . | . . . . . . Data Cores Recovered . | . . . . . . Used . | . . . . . . Hacking Detections 14 | . 6 . 7 . 1 Full Trace Events 14 | . 6 . 7 . 1 Feedback Events . | . . . . . . Feedback Blocked . | . . . . . . Robot Schematics Acquired . | . . . . . . Robots Built . | . . . . . . Matter . | . . . . . . Time . | . . . . . . Total Robot Build Rating . | . . . . . . Part Schematics Acquired 1 | . . . 1 . . Parts Built . | . . . . . . Matter . | . . . . . . Time . | . . . . . . Total Part Build Rating . | . . . . . . Parts Repaired 1 | . . . 1 . . Time 26 | . . . 26 . . Parts Recycled . | . . . . . . Recycled Matter . | . . . . . . Retrieved Matter . | . . . . . . Retrieved Components . | . . . . . . Parts Scanalyzed 1 | . . . 1 . . Part Schematics Acquired 1 | . . . 1 . . Parts Damaged . | . . . . . . Bothacking | -11 -10 -10 -9 -9 -8 ------------ Run | Scr Mat Min Mat Min Mat Used RIF Installer . | . . . . . . Robots Hacked 2 | . . . 1 . 1 Non-combat 2 | . . . 1 . 1 Combat . | . . . . . . Robot Hacks Applied 2 | . . . 1 . 1 find_recycling 1 | . . . . . 1 check_alert 1 | . . . 1 . . Relay Couplers Released . | . . . . . . Robots Rewired . | . . . . . . Allies Hacked . | . . . . . . Hacks Repelled . | . . . . . . Allies | -11 -10 -10 -9 -9 -8 -------- Run | Scr Mat Min Mat Min Mat Total Allies 2 | . . . . 2 . Largest Group . | . . . . . . Highest-Rated Group . | . . . . . . Highest-Rated Ally . | . . . . . . Total Orders . | . . . . . . Ally Attacks . | . . . . . . Total Damage . | . . . . . . Kills . | . . . . . . Allies Corrupted . | . . . . . . Allies Melted . | . . . . . . Intel | -11 -10 -10 -9 -9 -8 ------- Run | Scr Mat Min Mat Min Mat Robot Analysis Total . | . . . . . . Derelict Logs Recovered 1 | . . 1 . . . Drone Launches . | . . . . . . Drone Recoveries . | . . . . . . Exploration | -11 -10 -10 -9 -9 -8 ------------- Run | Scr Mat Min Mat Min Mat Turns Passed 1899 | 701 304 55 427 54 358 Spaces Moved 1649 | 188 372 98 733 94 164 Core 4 | 4 . . . . . Treads . | . . . . . . Legs . | . . . . . . Wheels 222 | 184 38 . . . . Hover . | . . . . . . Flight 1423 | . 334 98 733 94 164 Fastest Speed 37 | 50 37 37 37 37 37 Average Speed 44 | 89 42 37 37 37 37 Slowest Speed 120 | 90 90 37 120 37 37 Overloaded Moves . | . . . . . . Propulsion Burnouts . | . . . . . . Robots Hopped 23 | . 3 . 18 . 2 Cave-ins Triggered . | . . . . . . Exploration Rate (%) 39 | 12 68 23 73 38 20 Regions Visited 5 Branch Regions 2 Pre-discovered Areas . | . . . . . . Known Exits Taken 2 | . . . 1 1 . Unknown Exits Taken 3 | 1 1 1 . . . Scrap Searched 2 | . . 1 . 1 . Spaces Dug 3 | . . . 2 . 1 Terrain Destroyed 16 | 2 7 . 6 . 1 Melee 3 | . . . 2 . 1 Projectile . | . . . . . . AOE 13 | 2 7 . 4 . . Actions | -11 -10 -10 -9 -9 -8 --------- Run | Scr Mat Min Mat Min Mat Total 2668 | 695 465 114 831 112 451 Wait 833 | 468 16 . 50 19 280 Move 1599 | 187 365 97 697 93 160 Hop 22 | . 3 . 17 . 2 Pick Up 35 | 9 8 5 12 . 1 Fast Attach . | . . . . . . Attach 25 | 6 6 3 9 . 1 Detach 2 | . . 1 1 . . Swap 7 | . 1 1 5 . . Drop 17 | 4 6 3 3 . 1 Fire 112 | 21 56 4 31 . . Melee 15 | . 3 . 6 . 6 Ram 1 | . 1 . . . . Kick . | . . . . . . Crush . | . . . . . . Escape Stasis . | . . . . . . Rewire . | . . . . . . Trap . | . . . . . . Miscellaneous . | . . . . . . Route ------- -11/Scrapyard -10/Materials (discovered 4 exits: *Mat x3 / [*Min]) -10/Mines -9/Materials (discovered 4 exits: *Mat x2 / *Min x2) -9/Mines -8/Materials History --------- Turn | Location | Event 17 | -11/Scrapyard | Discovered new exit (range 16) 702 | -11/Scrapyard | Entered Materials 703 | -10/Materials | Build established: Mutant 874 | -10/Materials | Discovered new exit (range 10) 887 | -10/Materials | Discovered new exit (range 16) 929 | -10/Materials | Discovered new exit (range 8) 966 | -10/Materials | Discovered new exit (range 16) 1006 | -10/Materials | Entered Mines 1019 | -10/Mines | Found a damaged Exp. Sensor Array with a note attached 1021 | -10/Mines | Found Prototype Device 1023 | -10/Mines | Identified Exp. Sensor Array 1027 | -10/Mines | Discovered new exit (range 13) 1032 | -10/Mines | Learned Materials stockpile data 1061 | -10/Mines | Entered Materials 1061 | -9/Materials | Evolved 2 slots: Utility x2 1183 | -9/Materials | Repaired Flight Unit 1281 | -9/Materials | Discovered new exit (range 22) 1299 | -9/Materials | Discovered new exit (range 15) 1321 | -9/Materials | Discovered new exit (range 10) 1390 | -9/Materials | Discovered new exit (range 11) 1488 | -9/Materials | Identified exit to Mines 1488 | -9/Materials | Entered Mines 1516 | -9/Mines | Assembled infested the area 1539 | -9/Mines | Discovered new exit (range 10) 1542 | -9/Mines | Identified exit to Materials 1542 | -9/Mines | Entered Materials 1542 | -8/Materials | Evolved 2 slots: Power x1, Propulsion x1 1785 | -8/Materials | Build established: Scavenger-Scout 1900 | -8/Materials | Self-destructed Last Messages --------------- >>find_fabricator No accessible Fabricator found in memory. 01558_ Sneak attack on R-06 Scavenger. 01558_ Jacked R-06 Scavenger... >>find_recycling Pinpointed nearest Recycling Unit: (47,49) (added to intel). 01649_ Acquired EM Shotgun. 01650_ Dropped EM Shotgun. 01681_ R-06 Scavenger collects EM Shotgun. 01684_ K-01 Serf collects debris. 01760_ K-01 Serf cleans the Nuclear Reactor. 01871_ Sneak attack on K-01 Serf. 01871_ Destroyed Wheel. 01871_ K-01 Serf system corrupted by crushing effect. 01871_ K-01 Serf knocked back. 01871_ K-01 Serf distress signal alerts nearby ally. 01879_ K-01 Serf destroyed. 01882_ Acquired 10 matter. 01888_ Electrolysis Chamber disabled. 01898_ Datajack destroyed. Map ----- +----------------------------------------------------+ | ???# #?# t########### # """ | | ???# """ #?# ###########! # """ | | #### """ ### r= # | | ## """ + r ############# ## | | ## ### a #??????????? !#? | | ######+########+######g ######??????????? !#? | | #???# + u???????#g #????????????????!!!##? | | ???????????????????????# #????????????????####?? | | ???????????????????????# #?????????????????????? | | k??????????????????????# #?????????????????????? | | ???????????????????????# #?????????????????????? | | ???????????????????????# #?????????????????????? | | ??????????????k????????# #?????????????????????? | | ?????????????s??s??????# a#?????????????????????? | | ??????????????s????????# #?????????????????????? | | ???????????????????????# #???????###???????????? | | ?????????????s?????????# #??????|!!#???????????? | | ???????????????????????# #?????||!!#???????????? | | ???o??????????????????## ##??? #???????????? | | ????????????????????a?# ### ####????????? | | ??????????????????????# ! a ???????? | | ??????????????????????# Y ^ ???????? | | ??????????????????????# ???????? | | ??????????????????????# ####### ###????????? | | ????????????????????#####/#####?????? #??????????? | | ????????????????????# @ #??????????????????? | | ????????????????????# * #??????????????????? | | ????????????????????# k #??????????????????? | | ????????????????????# #??????????????????? | | ????????????????????# """ """ #??????????????????? | | ????????????????????# """ """ #??????????????????? | | ????????????????????# """ """ #??????????????????? | | ????????????????????# #??????????????????? | | ????????????????????#??#####??#??????????????????? | | ?????????????????????????????????????????????????? | | | | | | | | | | | | | | | | | | | | | | | | | | | | | | | +----------------------------------------------------+ Best States ------------- Heat Dissipation 31 Energy Generation 10 Energy Capacity 125 Matter Stores 300 Matter Capacity 300 Sight Range 16 Robot Scan Range 30 Terrain Scan Range 16 Terrain Scan Density 60 Resistance: KI 20 Resistance: TH 20 Resistance: EX 20 Resistance: EM 20 Resistance: I 20 Resistance: S 20 Resistance: P 20 Propulsion Shielding 33 Evasion (%) 62 Offensive Hacking 10 Item Schematics ----------------- Hvy. EM Pulse Gun | -9/Materials | Scanalyzed Robot Schematics ------------------ None Fabricated ------------ Nothing Alien Tech Used ----------------- None Achievements -------------- Slippery One True Hacker root@ Challenges ------------ None Game ------ Seed GhostBombardmentFlamer Manual? 0 Play Time 00:26:38 Cumulative 133.2 hours Start 2020.07.29 @ 15:52:54 End 2020.07.29 @ 18:35:06 Sessions 1 Manual Loads 0 Difficulty Adventurer Special Mode None Game No. 67 Rogue 0 Adventurer 67 Explorer 0 Win Type - Total 1 Types 1/0/0/0/0/0/0 Lore% 24 Gallery% 51 Achievement% 36 Wizard Run 0 Options --------- ASCII 0 Keyboard 0 Movement Numpad Keybinds 0 Fullscreen 0 Font 12/Smallcaps Map View 83x54 Tactical HUD 1 Map Filters NONE Filters NONE Steam X RUN: bb6e45a1-5462-4ec2-9cc7-c4ac895bc480